fUSD/lending_fUSD_20250804
["ID","MTS","AMOUNT","RATE_DAILY","PERIOD"]
[377241929,1754306018429,-1237.75,0.00041095,2]
[377241930,1754306018439,-623.67,0.00041095,2]
[377241931,1754306018448,-400.0,0.00041095,2]
[377241932,1754306018458,-992.32,0.00041095,2]
[377241933,1754306018467,-602.81,0.00041095,2]
[377241934,1754306018476,-400.0,0.00041095,2]
[377241935,1754306018486,-400.0,0.00041095,2]
[377241936,1754306018495,-400.0,0.00041095,2]
[377241937,1754306018505,-537.5,0.00041095,2]
[377241938,1754306018514,-956.99,0.00041095,2]
[377241939,1754306018524,-630.59,0.00041095,2]
[377241940,1754306018534,-1585.73,0.00041095,2]
[377241941,1754306018543,-1301.61,0.00041095,2]
[377241942,1754306018553,-1889.25,0.00041095,2]
[377241943,1754306018563,-641.71,0.00041095,2]
[377241944,1754306018572,-400.0,0.00041095,2]
[377241945,1754306018582,-924.72,0.00041095,2]
[377241946,1754306018591,-1059.24,0.00041095,2]
[377241947,1754306018600,-2092.15,0.00041095,2]
[377241948,1754306018610,-533.38,0.00041095,2]
[377241949,1754306018619,-890.3,0.00041095,2]
[377241950,1754306018629,-501.38,0.00041095,2]
[377241951,1754306018638,-1366.75,0.00041095,2]
[377241952,1754306018649,-1441.16,0.00041095,2]
[377241953,1754306018659,-690.08,0.00041095,2]
[377241954,1754306018669,-545.68,0.00041095,2]
[377241955,1754306018679,-990.2,0.00041095,2]
[377241956,1754306018688,-400.0,0.00041095,2]
[377241957,1754306018698,-803.42,0.00041095,2]
[377241958,1754306018707,-645.51,0.00041095,2]
[377241959,1754306018716,-400.0,0.00041095,2]
[377241960,1754306018726,-203.78430755,0.00041095,2]
[377241961,1754306018735,-726.21,0.00041095,2]
[377241962,1754306018745,-400.0,0.00041095,2]
[377241963,1754306018768,-400.0,0.00041095,2]
[377241964,1754306018778,-506.95,0.00041095,2]
[377241965,1754306018787,-788.62,0.00041095,2]
[377241966,1754306018796,-931.05,0.00041095,2]
[377241967,1754306018805,-400.0,0.00041095,2]
[377241968,1754306018816,-2071.07,0.00041095,2]
[377241969,1754306018825,-552.88,0.00041095,2]
[377241970,1754306018835,-1077.59,0.00041095,2]
[377241971,1754306018845,-400.0,0.00041095,2]
[377241972,1754306018854,-400.0,0.00041095,2]
[377241973,1754306018863,-551.2,0.00041095,2]
[377241974,1754306018872,-1479.72,0.00041095,2]
[377241975,1754306018881,-400.0,0.00041095,2]
[377241976,1754306018891,-418.78,0.00041095,120]
[377241977,1754306019021,-400.0,0.00041095,2]
[377241978,1754306019037,-628.0,0.00041095,2]
[377241979,1754306019046,-400.0,0.00041095,2]
[377241980,1754306019056,-400.0,0.00041095,2]
[377241981,1754306019067,-150.0,0.00041095,2]
[377241982,1754306019076,-1186.41,0.00041095,2]
[377241983,1754306019086,-1047.92,0.00041095,2]
[377241984,1754306019095,-400.0,0.00041095,2]
[377241985,1754306019106,-882.59,0.00041095,2]
[377241986,1754306019115,-845.07,0.00041095,2]
[377241987,1754306019125,-1368.23,0.00041095,2]
[377241988,1754306019135,-627.42,0.00041095,2]
[377241989,1754306019145,-1654.02,0.00041095,2]
[377241990,1754306019155,-1022.16,0.00041095,2]
[377241991,1754306019164,-928.07,0.00041095,2]
[377241992,1754306019173,-463.65,0.00041095,2]
[377241993,1754306019183,-987.02,0.00041095,2]
[377241994,1754306019194,-1457.97,0.00041095,2]
[377241995,1754306019205,-1127.8,0.00041095,2]
[377241996,1754306019215,-1263.43,0.00041095,2]
[377241997,1754306019226,-732.77,0.00041095,2]
[377241998,1754306019236,-1212.72,0.00041095,2]
[377241999,1754306019246,-1364.75,0.00041095,2]
[377242000,1754306019256,-3088.08,0.00041095,2]
[377242001,1754306019266,-1963.71,0.00041095,2]
[377242002,1754306019277,-400.0,0.00041095,2]
[377242003,1754306019288,-400.0,0.00041095,2]
[377242004,1754306019298,-669.31,0.00041095,2]
[377242005,1754306019308,-1725.86,0.00041095,2]
[377242006,1754306019319,-1338.78,0.00041095,2]
[377242007,1754306019328,-470.83,0.00041095,2]
[377242008,1754306019337,-1157.0,0.00041095,2]
[377242009,1754306019348,-1049.12,0.00041095,2]
[377242010,1754306019358,-400.0,0.00041095,2]
[377242011,1754306019368,-249.43896724,0.00041095,2]
[377242012,1754306019377,-888.73,0.00041095,2]
[377242013,1754306019387,-719.82,0.00041095,2]
[377242014,1754306019396,-574.83,0.00041095,2]
[377242015,1754306019406,-1718.88,0.00041095,2]
[377242016,1754306019416,-1630.61,0.00041095,2]
[377242017,1754306019426,-629.17,0.00041095,2]
[377242018,1754306019437,-400.0,0.00041095,2]
[377242019,1754306019447,-1303.32,0.00041095,2]
[377242020,1754306019457,-666.66,0.00041095,2]
[377242021,1754306019466,-603.36,0.00041095,2]
[377242022,1754306019476,-495.64,0.00041095,2]
[377242023,1754306019486,-1485.45,0.00041095,2]
[377242024,1754306019496,-718.11,0.00041095,2]
[377242025,1754306019505,-400.0,0.00041095,2]
[377242026,1754306019514,-1307.14,0.00041095,2]
[377242027,1754306019525,-1527.44,0.00041095,2]
[377242028,1754306019534,-400.0,0.00041095,2]
[377242029,1754306019544,-1110.24,0.00041095,2]
[377242030,1754306019558,-869.15,0.00041095,2]
[377242031,1754306019569,-536.27,0.00041095,2]
[377242032,1754306019580,-1091.81,0.00041095,2]
[377242033,1754306019590,-1130.18,0.00041095,2]
[377242034,1754306019600,-400.0,0.00041095,2]
[377242035,1754306019611,-1117.05,0.00041095,2]
[377242036,1754306019621,-905.65,0.00041095,2]
[377242037,1754306019631,-1075.79,0.00041095,2]
[377242038,1754306019640,-471.33,0.00041095,2]
[377242039,1754306019650,-966.32,0.00041095,2]
[377242040,1754306019660,-400.0,0.00041095,2]
[377242041,1754306019670,-798.59,0.00041095,2]
[377242042,1754306019680,-400.0,0.00041095,2]
[377242043,1754306019690,-1284.95,0.00041095,2]
[377242044,1754306019700,-1354.83,0.00041095,2]
[377242045,1754306019710,-912.08,0.00041095,2]
[377242046,1754306019720,-1268.26,0.00041095,2]
[377242047,1754306019729,-862.24,0.00041095,2]
[377242048,1754306019739,-631.36,0.00041095,2]
[377242049,1754306019748,-1400.07,0.00041095,2]
[377242050,1754306019757,-699.87,0.00041095,2]
[377242051,1754306019768,-1343.86,0.00041095,2]
[377242052,1754306019777,-743.43,0.00041095,2]
[377242053,1754306019787,-418.89,0.00041095,2]
[377242054,1754306019796,-616.73,0.00041095,2]
[377242055,1754306019805,-400.0,0.00041095,2]
[377242056,1754306019816,-927.18,0.00041095,2]
[377242057,1754306019825,-875.84,0.00041095,2]
[377242058,1754306019835,-1329.19,0.00041095,2]
[377242059,1754306019844,-434.19,0.00041095,2]
[377242060,1754306019855,-1658.94,0.00041095,2]
[377242061,1754306019865,-1333.24,0.00041095,2]
[377242062,1754306019875,-1252.38,0.00041095,2]
[377242063,1754306019885,-400.0,0.00041095,2]
[377242064,1754306019895,-967.63,0.00041095,2]
[377242065,1754306019904,-1263.4,0.00041095,2]
[377242066,1754306019913,-400.0,0.00041095,2]
[377242067,1754306019923,-414.76,0.00041095,2]
[377242068,1754306019934,-400.0,0.00041095,2]
[377242069,1754306019945,-944.68,0.00041095,2]
[377242070,1754306019954,-400.0,0.00041095,2]
[377242071,1754306019965,-412.29,0.00041095,2]
[377242072,1754306019975,-189.0,0.00041095,2]
[377242073,1754306019985,-605.41,0.00041095,2]
[377242074,1754306019994,-1748.2,0.00041095,2]
[377242075,1754306020006,-1117.53,0.00041095,2]
[377242076,1754306020015,-2048.38,0.00041095,2]
[377242077,1754306020025,-886.22,0.00041095,2]
[377242078,1754306020034,-3038.05,0.00041095,2]
[377242079,1754306020044,-611.63,0.00041095,2]
[377242080,1754306020054,-400.0,0.00041095,2]
[377242081,1754306020064,-1068.97,0.00041095,2]
[377242082,1754306020073,-673.68,0.00041095,2]
[377242083,1754306020083,-841.94,0.00041095,2]
[377242084,1754306020094,-590.51,0.00041095,2]
[377242085,1754306020110,-1348.61,0.00041095,2]
[377242086,1754306020121,-4263.58,0.00041095,2]
[377242087,1754306020131,-400.0,0.00041095,2]
[377242088,1754306020141,-1374.4,0.00041095,2]
[377242089,1754306020150,-661.31,0.00041095,2]
[377242090,1754306020160,-888.64,0.00041095,2]
[377242091,1754306020169,-1778.85,0.00041095,2]
[377242092,1754306020179,-1281.23,0.00041095,2]
[377242093,1754306020188,-1558.5,0.00041095,2]
[377242094,1754306020197,-838.38,0.00041095,2]
[377242095,1754306020207,-1793.86,0.00041095,2]
[377242096,1754306020217,-632.03,0.00041095,2]
[377242097,1754306020227,-719.42,0.00041095,2]
[377242098,1754306020237,-2346.34,0.00041095,2]
[377242099,1754306020246,-2208.08,0.00041095,2]
[377242100,1754306020257,-400.0,0.00041095,2]
[377242101,1754306020267,-6220.24,0.00041095,2]
[377242102,1754306020276,-2121.06,0.00041095,2]
[377242103,1754306020286,-2028.4,0.00041095,2]
[377242104,1754306020296,-959.16,0.00041095,2]
[377242105,1754306020306,-1009.99,0.00041095,2]
[377242106,1754306020317,-400.0,0.00041095,2]
[377242107,1754306020327,-1169.71,0.00041095,2]
[377242108,1754306020337,-693.34,0.00041095,2]
[377242109,1754306020347,-1366.07,0.00041095,2]
[377242110,1754306020356,-1689.54,0.00041095,2]
[377242111,1754306020367,-1421.12,0.00041095,2]
[377242112,1754306020377,-1110.66,0.00041095,2]
[377242113,1754306020388,-487.34,0.00041095,2]
[377242114,1754306020397,-401.93,0.00041095,2]
[377242115,1754306020408,-2122.58,0.00041095,2]
[377242116,1754306020417,-548.21,0.00041095,2]
[377242117,1754306020426,-2428.92,0.00041095,2]
[377242118,1754306020435,-1096.89,0.00041095,2]
[377242119,1754306020445,-428.2140021,0.00041095,2]
[377242120,1754306020455,-400.0,0.00041095,2]
[377242121,1754306020465,-400.0,0.00041095,2]
[377242122,1754306020474,-558.13,0.00041095,2]
[377242123,1754306020485,-1162.47,0.00041095,2]
[377242124,1754306020493,-683.16,0.00041095,2]
[377242125,1754306020503,-4527.79,0.00041095,2]
[377242126,1754306020513,-1000.0,0.00041095,30]
[377242127,1754306020522,-236.726818,0.00041095,2]
[377242128,1754306020531,-688.63,0.00041095,2]
[377242129,1754306020541,-787.49,0.00041095,2]
[377242130,1754306020550,-400.0,0.00041095,2]
[377242131,1754306020560,-5396.72,0.00041095,2]
[377242132,1754306020570,-1940.04,0.00041095,2]
[377242133,1754306020579,-642.79,0.00041095,2]
[377242134,1754306020589,-400.0,0.00041095,2]
[377242135,1754306020598,-400.0,0.00041095,2]
[377242136,1754306020608,-400.0,0.00041095,2]
[377242137,1754306020617,-4563.07,0.00041095,2]
[377242138,1754306020627,-1973.82,0.00041095,2]
[377242139,1754306020637,-1666.37,0.00041095,2]
[377242140,1754306020647,-400.0,0.00041095,2]
[377242141,1754306020656,-400.0,0.00041095,2]
[377242142,1754306020666,-524.97,0.00041095,2]
[377242143,1754306020675,-962.89,0.00041095,2]
[377242144,1754306020685,-778.62,0.00041095,2]
[377242145,1754306020694,-1536.5,0.00041095,2]
[377242146,1754306020703,-1125.71,0.00041095,2]
[377242147,1754306020713,-8227.11,0.00041095,2]
[377242148,1754306020722,-802.26,0.00041095,2]
[377242149,1754306020732,-400.0,0.00041095,2]
[377242150,1754306020741,-770.91,0.00041095,2]
[377242151,1754306020751,-2940.43,0.00041095,2]
[377242152,1754306020760,-11138.27,0.00041095,2]
[377242153,1754306020770,-458.47,0.00041095,2]
[377242154,1754306020779,-2047.73,0.00041095,2]
[377242155,1754306020788,-1728.23,0.00041095,2]
[377242156,1754306020798,-2159.66,0.00041095,2]
[377242157,1754306020808,-1756.78,0.00041095,2]
[377242158,1754306020817,-445.29,0.00041095,2]
[377242159,1754306020826,-2736.99,0.00041095,2]
[377242160,1754306020836,-1618.06,0.00041095,2]
[377242161,1754306020845,-581.83,0.00041095,2]
[377242162,1754306020855,-893.35,0.00041095,2]
[377242163,1754306020864,-1865.31,0.00041095,2]
[377242164,1754306020874,-400.0,0.00041095,2]
[377242165,1754306020883,-1394.73,0.00041095,2]
[377242166,1754306020893,-1087.63,0.00041095,2]
[377242167,1754306020902,-3648.6,0.00041095,2]
[377242168,1754306020912,-997.42,0.00041095,2]
[377242169,1754306020921,-9079.6,0.00041095,2]
[377242170,1754306020930,-1873.61,0.00041095,2]
[377242171,1754306020943,-1200.71,0.00041095,2]
[377242172,1754306020953,-400.0,0.00041095,2]
[377242173,1754306020962,-510.65,0.00041095,2]
[377242174,1754306020971,-520.48,0.00041095,2]
[377242175,1754306020980,-1629.46,0.00041095,2]
[377242176,1754306020990,-531.96,0.00041095,2]
[377242177,1754306020999,-875.07,0.00041095,2]
[377242178,1754306021009,-3451.49,0.00041095,2]
[377242179,1754306021024,-688.87,0.00041095,2]
[377242180,1754306021034,-6021.56,0.00041095,2]
[377242181,1754306021043,-1001.01,0.00041095,2]
[377242182,1754306021052,-178.14243656,0.00041095,2]
[377242183,1754306021062,-400.0,0.00041095,2]
[377242184,1754306021072,-1875.95,0.00041095,2]
[377242185,1754306021081,-659.18,0.00041095,2]
[377242186,1754306021090,-618.84,0.00041095,2]
[377242187,1754306021099,-491.69,0.00041095,2]
[377242188,1754306021108,-905.16,0.00041095,2]
[377242189,1754306021117,-476.99,0.00041095,2]
[377242190,1754306021126,-1286.32,0.00041095,2]
[377242191,1754306021135,-713.76,0.00041095,2]
[377242192,1754306021144,-580.3,0.00041095,2]
[377242193,1754306021153,-1377.16,0.00041095,2]
[377242194,1754306021162,-727.44,0.00041095,2]
[377242195,1754306021171,-1539.83,0.00041095,2]
[377242196,1754306021520,-582.52,0.00041095,2]
[377242197,1754306021533,-400.0,0.00041095,2]
[377242198,1754306021542,-406.58,0.00041095,2]
[377242199,1754306021552,-2160.03,0.00041095,2]
[377242200,1754306021561,-1891.71,0.00041095,2]
[377242201,1754306021571,-1515.13,0.00041095,2]
[377242202,1754306021581,-3107.23,0.00041095,2]
[377242203,1754306021590,-1032.57,0.00041095,2]
[377242204,1754306021599,-1732.93,0.00041095,2]
[377242205,1754306021609,-6316.72,0.00041095,2]
[377242206,1754306021619,-1698.39,0.00041095,2]
[377242207,1754306021628,-400.0,0.00041095,2]
[377242208,1754306021638,-1238.95,0.00041095,2]
[377242209,1754306021647,-1066.08,0.00041095,2]
[377242210,1754306021656,-2052.93,0.00041095,2]
[377242211,1754306021666,-1868.67,0.00041095,2]
[377242212,1754306021675,-533.88,0.00041095,2]
[377242213,1754306021684,-317.11928556,0.00041095,2]
[377242214,1754306021694,-1689.09,0.00041095,2]
[377242215,1754306021704,-1178.78,0.00041095,2]
[377242216,1754306021713,-942.3,0.00041095,2]
[377242217,1754306021722,-1670.39,0.00041095,2]
[377242218,1754306021732,-400.0,0.00041095,2]
[377242219,1754306021742,-1644.64,0.00041095,2]
[377242220,1754306021751,-1545.77,0.00041095,2]
[377242221,1754306021760,-1572.92,0.00041095,2]
[377242222,1754306021770,-1113.34,0.00041095,2]
[377242223,1754306021782,-1766.11,0.00041095,2]
[377242224,1754306021793,-8388.36,0.00041095,2]
[377242225,1754306021802,-1722.33,0.00041095,2]
[377242226,1754306021812,-1306.14,0.00041095,2]
[377242227,1754306021823,-819.3,0.00041095,2]
[377242228,1754306021833,-1596.57,0.00041095,2]
[377242229,1754306021842,-400.0,0.00041095,2]
[377242230,1754306021852,-1501.24,0.00041095,2]
[377242231,1754306021862,-1264.88,0.00041095,2]
[377242232,1754306021872,-431.73,0.00041095,2]
[377242233,1754306021882,-1010.21,0.00041095,2]
[377242234,1754306021891,-1156.04,0.00041095,2]
[377242235,1754306021900,-873.38,0.00041095,2]
[377242236,1754306021910,-4195.1,0.00041095,2]
[377242237,1754306021920,-1925.04,0.00041095,2]
[377242238,1754306021930,-714.27,0.00041095,2]
[377242239,1754306021942,-400.0,0.00041095,2]
[377242240,1754306021952,-1469.78,0.00041095,2]
[377242241,1754306021961,-817.57,0.00041095,2]
[377242242,1754306021971,-1923.74,0.00041095,2]
[377242243,1754306021981,-1747.36,0.00041095,2]
[377242244,1754306021990,-694.89,0.00041095,2]
[377242245,1754306022000,-400.0,0.00041095,2]
[377242246,1754306022009,-670.37,0.00041095,2]
[377242247,1754306022019,-1337.16,0.00041095,2]
[377242248,1754306022029,-1746.78,0.00041095,2]
[377242249,1754306022039,-1448.9,0.00041095,2]
[377242250,1754306022048,-5776.09,0.00041095,2]
[377242251,1754306022058,-1374.38,0.00041095,2]
[377242252,1754306022068,-400.0,0.00041095,2]
[377242253,1754306022077,-1793.17,0.00041095,2]
[377242254,1754306022087,-1183.71,0.00041095,2]
[377242255,1754306022096,-400.0,0.00041095,2]
[377242256,1754306022105,-400.0,0.00041095,2]
[377242257,1754306022114,-6346.76,0.00041095,2]
[377242258,1754306022124,-455.16,0.00041095,2]
[377242259,1754306022133,-400.0,0.00041095,2]
[377242260,1754306022142,-488.84778556,0.00041095,2]
[377242261,1754306022152,-1230.85,0.00041095,2]
[377242262,1754306022161,-1208.54,0.00041095,2]
[377242263,1754306022171,-400.0,0.00041095,2]
[377242264,1754306022182,-1363.88,0.00041095,2]
[377242265,1754306022192,-400.0,0.00041095,2]
[377242266,1754306022202,-941.56,0.00041095,2]
[377242267,1754306022211,-1603.12,0.00041095,2]
[377242268,1754306022221,-2444.62,0.00041095,2]
[377242269,1754306022231,-968.13,0.00041095,2]
[377242270,1754306022241,-642.68,0.00041095,2]
[377242271,1754306022251,-521.68,0.00041095,2]
[377242272,1754306022260,-400.0,0.00041095,2]
[377242273,1754306022270,-1266.17,0.00041095,2]
[377242274,1754306022280,-532.52,0.00041095,2]
[377242275,1754306022290,-403.29,0.00041095,2]
[377242276,1754306022299,-1754.23,0.00041095,2]
[377242277,1754306022309,-2358.63,0.00041095,2]
[377242278,1754306022318,-2154.85,0.00041095,2]
[377242279,1754306022327,-400.0,0.00041095,2]
[377242280,1754306022338,-403.11,0.00041095,2]
[377242281,1754306022348,-759.33,0.00041095,2]
[377242282,1754306022358,-1873.9,0.00041095,2]
[377242283,1754306022368,-1735.99,0.00041095,2]
[377242284,1754306022378,-400.0,0.00041095,2]
[377242285,1754306022388,-1686.63,0.00041095,2]
[377242286,1754306022397,-1673.67,0.00041095,2]
[377242287,1754306022407,-914.89,0.00041095,2]
[377242288,1754306022416,-1754.05,0.00041095,2]
[377242289,1754306022426,-1464.44,0.00041095,2]
[377242290,1754306022435,-1593.33,0.00041095,2]
[377242291,1754306022445,-773.62,0.00041095,2]
[377242292,1754306022455,-1378.84,0.00041095,2]
[377242293,1754306022465,-783.24,0.00041095,2]
[377242294,1754306022474,-652.46,0.00041095,2]
[377242295,1754306022484,-2045.74,0.00041095,2]
[377242296,1754306022493,-4332.09,0.00041095,2]
[377242297,1754306022503,-557.78,0.00041095,2]
[377242298,1754306022513,-382.02753566,0.00041095,2]
[377242299,1754306022523,-505.58,0.00041095,2]
[377242300,1754306022532,-781.05,0.00041095,2]
[377242301,1754306022542,-1582.56,0.00041095,2]
[377242302,1754306022552,-437.18,0.00041095,2]
[377242303,1754306022561,-2822.69,0.00041095,2]
[377242304,1754306022571,-400.0,0.00041095,2]
[377242305,1754306022582,-958.47,0.00041095,2]
[377242306,1754306022592,-4257.32,0.00041095,2]
[377242307,1754306022602,-1692.49,0.00041095,2]
[377242308,1754306022612,-1474.41,0.00041095,2]
[377242309,1754306022622,-8447.34,0.00041095,2]
[377242310,1754306022631,-12684.74,0.00041095,2]
[377242311,1754306022641,-8555.46,0.00041095,2]
[377242312,1754306022651,-1233.77,0.00041095,2]
[377242313,1754306022661,-920.62,0.00041095,2]
[377242314,1754306022671,-400.0,0.00041095,2]
[377242315,1754306022681,-333.78423794,0.00041095,2]
[377242316,1754306022691,-1370.77,0.00041095,2]
[377242317,1754306022701,-1888.39,0.00041095,2]
[377242318,1754306022711,-1431.25,0.00041095,2]
[377242319,1754306022720,-2271.19,0.00041095,2]
[377242320,1754306022730,-1147.83,0.00041095,2]
[377242321,1754306022740,-1817.19,0.00041095,2]
[377242322,1754306022749,-288.07830399,0.00041095,2]
[377242323,1754306022759,-1907.39,0.00041095,2]
[377242324,1754306022769,-400.0,0.00041095,2]
[377242325,1754306022780,-2068.75,0.00041095,2]
[377242326,1754306022790,-2687.79,0.00041095,2]
[377242327,1754306022800,-400.0,0.00041095,2]
[377242328,1754306022810,-2214.61,0.00041095,2]
[377242329,1754306022819,-400.0,0.00041095,2]
[377242330,1754306022832,-802.2,0.00041095,2]
[377242331,1754306022843,-670.02,0.00041095,2]
[377242332,1754306022853,-78789.54,0.00041095,2]
[377242333,1754306022863,-1614.22,0.00041095,2]
[377242334,1754306022873,-224.26225658,0.00041095,2]
[377242335,1754306022883,-579.73,0.00041095,2]
[377242336,1754306022893,-1690.87,0.00041095,2]
[377242337,1754306022903,-1594.85,0.00041095,2]
[377242338,1754306022914,-1475.5,0.00041095,2]
[377242339,1754306022924,-400.0,0.00041095,2]
[377242340,1754306022934,-11200.4,0.00041095,2]
[377242341,1754306022947,-1258.18,0.00041095,2]
[377242342,1754306022957,-1475.71,0.00041095,2]
[377242343,1754306022967,-1043.71,0.00041095,2]
[377242344,1754306022977,-1778.93,0.00041095,2]
[377242345,1754306022987,-2169.93,0.00041095,2]
[377242346,1754306022996,-498.32,0.00041095,2]
[377242347,1754306023007,-898.73,0.00041095,2]
[377242348,1754306023019,-3118.04,0.00041095,2]
[377242349,1754306023029,-1556.28,0.00041095,2]
[377242350,1754306023038,-1857.39,0.00041095,2]
[377242351,1754306023048,-400.0,0.00041095,2]
[377242352,1754306023057,-7506.25,0.00041095,2]
[377242353,1754306023068,-1191.23,0.00041095,2]
[377242354,1754306023078,-1349.97,0.00041095,2]
[377242355,1754306023087,-577.79,0.00041095,2]
[377242356,1754306023097,-1074.04,0.00041095,2]
[377242357,1754306023107,-3769.24,0.00041095,2]
[377242358,1754306023116,-988.14,0.00041095,2]
[377242359,1754306023126,-1741.31,0.00041095,2]
[377242360,1754306023135,-400.0,0.00041095,2]
[377242361,1754306023145,-1932.57,0.00041095,2]
[377242362,1754306023154,-3095.42,0.00041095,2]
[377242363,1754306023163,-1252.42,0.00041095,2]
[377242364,1754306023172,-1555.06,0.00041095,2]
[377242365,1754306023181,-3383.45,0.00041095,2]
[377242366,1754306023190,-400.0,0.00041095,2]
[377242367,1754306023201,-495.93,0.00041095,2]
[377242368,1754306023210,-400.0,0.00041095,2]
[377242369,1754306023220,-2072.61,0.00041095,2]
[377242370,1754306023229,-1985.84,0.00041095,2]
[377242371,1754306023239,-1753.85,0.00041095,2]
[377242372,1754306023249,-1602.8,0.00041095,2]
[377242373,1754306023258,-3681.37,0.00041095,2]
[377242374,1754306023268,-400.0,0.00041095,2]
[377242375,1754306023278,-400.0,0.00041095,2]
[377242376,1754306023288,-1605.29,0.00041095,2]
[377242377,1754306023297,-1657.08,0.00041095,2]
[377242378,1754306023307,-1613.77,0.00041095,2]
[377242379,1754306023316,-400.0,0.00041095,2]
[377242380,1754306023326,-400.0,0.00041095,2]
[377242381,1754306023335,-1726.45,0.00041095,2]
[377242382,1754306023345,-1109.72,0.00041095,2]
[377242383,1754306023355,-1265.39,0.00041095,2]
[377242384,1754306023365,-2197.37,0.00041095,2]
[377242385,1754306023375,-400.0,0.00041095,2]
[377242386,1754306023385,-531.77,0.00041095,2]
[377242387,1754306023395,-1790.09,0.00041095,2]
[377242388,1754306023405,-400.0,0.00041095,2]
[377242389,1754306023414,-994.35,0.00041095,2]
[377242390,1754306023423,-400.0,0.00041095,2]
[377242391,1754306023433,-1207.63,0.00041095,2]
[377242392,1754306023443,-1697.44,0.00041095,2]
[377242393,1754306023453,-1044.0,0.00041095,2]
[377242394,1754306023462,-1273.07,0.00041095,2]
[377242395,1754306023472,-400.0,0.00041095,2]
[377242396,1754306023481,-400.0,0.00041095,2]
[377242397,1754306023491,-971.37,0.00041095,2]
[377242398,1754306023501,-1153.38,0.00041095,2]
[377242399,1754306023511,-400.0,0.00041095,2]
[377242400,1754306023520,-1809.15,0.00041095,2]
[377242401,1754306023530,-596.6,0.00041095,2]
[377242402,1754306023540,-8777.73,0.00041095,2]
[377242403,1754306023549,-1037.03,0.00041095,2]
[377242404,1754306023559,-2275.44,0.00041095,2]
[377242405,1754306023569,-1600.04,0.00041095,2]
[377242406,1754306023578,-599.54,0.00041095,2]
[377242407,1754306023589,-490.62,0.00041095,2]
[377242408,1754306023597,-1213.48,0.00041095,2]
[377242409,1754306023607,-6082.8,0.00041095,2]
[377242410,1754306023616,-1097.82,0.00041095,2]
[377242411,1754306023626,-515.68655318,0.00041095,2]
[377242412,1754306023635,-797.89,0.00041095,2]
[377242413,1754306023645,-448.66,0.00041095,2]
[377242414,1754306023654,-596.19,0.00041095,2]
[377242415,1754306023663,-10707.5,0.00041095,2]
[377242416,1754306023673,-1518.17,0.00041095,2]
[377242417,1754306023682,-4934.5,0.00041095,2]
[377242418,1754306023692,-2575.64,0.00041095,2]
[377242419,1754306023701,-400.0,0.00041095,2]
[377242420,1754306023710,-400.0,0.00041095,2]
[377242421,1754306023720,-1048.1,0.00041095,2]
[377242422,1754306023730,-1936.12,0.00041095,2]
[377242423,1754306023740,-2188.32,0.00041095,2]
[377242424,1754306023749,-1283.58,0.00041095,2]
[377242425,1754306023759,-1614.51,0.00041095,2]
[377242426,1754306023770,-586.94,0.00041095,2]
[377242427,1754306023780,-1367.27,0.00041095,2]
[377242428,1754306023789,-400.0,0.00041095,2]